[Event "10th Norway Chess 2022"]
[Site "Stavanger"]
[Date "2022.06.01"]
[Round "2.1"]
[White "Radjabov, Teimour"]
[Black "Tari, Aryan"]
[Result "1/2-1/2"]
[ECO "D41"]
[WhiteElo "2753"]
[BlackElo "2654"]
[Annotator "TA"]
[PlyCount "65"]
[EventDate "2022.05.30"]
[EventType "tourn"]
[EventCountry "NOR"]
[SourceTitle "playchess.com"]
[Source "ChessBase"]
[SourceQuality "1"]
[TimeControl "40/7200:0"]

{[%evp 11,65,43,48,30,31,-1,29,25,30,24,26,12,8,10,21,11,12,4,0,0,0,0,0,0,0,0,0,0,0,0,0,0,0,0,0,0,0,0,0,0,0,0,0,0,0,0,0,0,72,72,72,71,72,71,71,66]} 1. d4 {[%emt 0:00:03]} Nf6 {[%emt 0:00:25]} 2. c4 {[%emt 0:00:05]} e6 {[%emt 0:00:06]} 3. Nf3 {[%emt 0:00:07]} d5 {[%emt 0:00:06]} 4. Nc3 {[%emt 0:00:05]} c5 {[%emt 0:00:06]} 5. cxd5 {[%emt 0:00:15]} cxd4 {[%emt 0:00:11]} 6. Qxd4 {[%emt 0:00:06]} exd5 {[%emt 0:00:09]} 7. e4 {[%emt 0:00:06] D41: Queen's Gambit Declined: Semi-Tarrasch with 5 cxd5.} dxe4 $1 {[%emt 0:00:18][%mdl 4] outshines the older 7...Nc6.} 8. Qxd8+ {[%emt 0:00:07]} Kxd8 {[%emt 0:00:05]} 9. Ng5 {[%emt 0:00:07][%csl LRe4,LRf7] White has an edge.} Be6 {[%emt 0:00:06]} 10. Nxe6+ {[%emt 0:00:31]} fxe6 {[%emt 0:00:07]} 11. Bc4 {[%emt 0:00:06]} Ke7 {[%emt 0:02:04]} 12. O-O {[%emt 0:00:35] next Re1 is good for White.} Kf7 {[%emt 0:01:33]} 13. Nb5 {[%emt 0:01:22][%mdl 1024] aiming for Nc7. White has compensation.} Na6 {[%emt 0:01:53] [#] Prevents Nc7.} 14. a3 $146 {[%emt 0:00:15]} ({Predecessor:} 14. Be3 Bc5 15. Bxc5 Nxc5 16. b4 Na6 17. a3 Ke7 18. Rac1 Rhc8 19. Ba2 Nd5 20. Bb1 {½-½ (44) Spartinos,P (2357)-Baranowski,T (2359) ICCF email 2015}) 14... Be7 {[%emt 0:05:30]} 15. Be3 {[%emt 0:02:01]} Rhc8 {[%emt 0:12:06]} 16. Rac1 {[%emt 0:02:54]} Nc5 {[%emt 0:17:27]} 17. Rc2 {[%emt 0:01:05]} a5 {[%emt 0:21:53][%cal Ba7a5,Ba5a4][%mdl 32]} 18. Rfc1 {[%emt 0:09:57] Hoping for Be2.} a4 $1 {[%emt 0:00:58]} 19. Bxc5 {[%emt 0:14:56]} Rxc5 {[%emt 0:01:21]} 20. Bxe6+ {[%emt 0:04:29]} Kxe6 {[%emt 0:00:30]} 21. Rxc5 {[%emt 0:00:17]} Bxc5 {[%emt 0:00:06]} 22. Rxc5 $11 {[%emt 0:00:07][%mdl 4096] Endgame KRN-KRN} (22. Nc7+ Kd6 23. Nxa8 e3 24. Rd1+ Kc6 25. fxe3 Nd5) 22... Rd8 {[%emt 0:03:08][%cal Rd8d1] [#]} 23. Nc3 {[%emt 0:00:37] Inhibits Rd1+.} Rd2 {[%emt 0:02:08]} 24. Rb5 {[%emt 0:00:38]} Nd5 {[%emt 0:02:14] Against Rb6+. Threatens to win with ...Nxc3.} 25. h4 {[%emt 0:00:57]} Nxc3 {[%emt 0:01:02]} 26. bxc3 {[%emt 0:00:05] KR-KR} Ra2 {[%emt 0:01:49]} 27. Rxb7 {[%emt 0:00:27]} Kf6 {[%emt 0:00:33]} 28. Rb4 {[%emt 0:08:00]} Rxa3 {[%emt 0:00:07]} 29. Rxe4 {[%emt 0:00:03]} Rxc3 {[%emt 0:00:11]} (29... Ra1+ $11 {keeps the balance.} 30. Kh2 a3) 30. Rxa4 $16 {[%emt 0:00:04] White is better.} h5 {[%emt 0:01:03]} 31. Rf4+ {[%emt 0:00:44]} Kg6 {[%emt 0:00:14]} 32. Kh2 {[%emt 0:00:18]} Ra3 {[%emt 0:00:25]} 33. Rb4 {[%emt 0:02:54] Weighted Error Value: White=0.02 (flawless) /Black=0.06 (flawless)} 1/2-1/2

[Event "10th Norway Chess 2022"]
[Site "Stavanger"]
[Date "2022.06.01"]
[Round "2.1"]
[White "Vachier-Lagrave, Maxime"]
[Black "Mamedyarov, Shakhriyar"]
[Result "1/2-1/2"]
[ECO "D50"]
[WhiteElo "2750"]
[BlackElo "2770"]
[Annotator "TA"]
[PlyCount "63"]
[EventDate "2022.05.30"]
[EventType "tourn"]
[EventCountry "NOR"]
[SourceTitle "playchess.com"]
[Source "ChessBase"]
[SourceQuality "1"]
[TimeControl "40/7200:0"]

{[%evp 14,63,21,20,20,12,22,19,33,21,17,16,19,0,0,0,0,0,0,0,0,0,0,0,0,0,0,0,0,0,0,0,0,0,0,0,0,0,0,0,0,0,0,0,0,0,0,0,0,0,0,0]} 1. d4 {[%emt 0:00:04]} Nf6 {[%emt 0:00:16]} 2. c4 {[%emt 0:00:06]} e6 {[%emt 0:00:04]} 3. Nf3 {[%emt 0:00:07]} d5 {[%emt 0:00:09]} 4. Nc3 {[%emt 0:00:04]} c5 {[%emt 0:00:10]} 5. cxd5 {[%emt 0:00:56]} cxd4 {[%emt 0:00:47]} 6. Qxd4 {[%emt 0:00:03]} exd5 {[%emt 0:00:07]} 7. Bg5 {[%emt 0:02:28]} Be7 {[%emt 0:01:04]} 8. e3 {[%emt 0:00:03]} O-O {[%emt 0:00:06] D50: Queen's Gambit Declined: Dutch-Peruvian Gambit.} 9. Qa4 {[%emt 0:00:11]} h6 {[%emt 0:02:15]} 10. Bh4 {[%emt 0:01:01]} Nc6 {[%emt 0:04:04]} 11. Bb5 {[%emt 0:00:42]} Ne4 {[%emt 0:13:18] The position is equal.} 12. Bxe7 {[%emt 0:09:27]} Nxe7 {[%emt 0:00:41]} 13. Rc1 {[%emt 0:00:08]} Qb6 {[%emt 0:07:13]} 14. O-O {[%emt 0:02:18]} a6 {[%emt 0:03:29] [#] And now ...Nxc3 would win.} 15. Nxe4 {[%emt 0:05:19]} dxe4 {[%emt 0:01:10]} 16. Qxe4 {[%emt 0:01:05] Black must now prevent Ba4.} Qxb5 {[%emt 0:00:17]} 17. Qxe7 {[%emt 0:00:08]} Qxb2 {[%emt 0:00:03]} 18. a3 {[%emt 0:04:39]} Bf5 {[%emt 0:03:17]} 19. Rc7 {[%emt 0:02:21]} b5 {[%emt 0:01:39] [#]} 20. Qb4 $146 {[%emt 0:01:11]} ({Predecessor:} 20. Qc5 Bd3 21. Re1 Bc4 {½-½ (21) Deforel,J (2245)-Assuncao,J (2335) ICCF email 2015}) 20... Qxb4 {[%emt 0:02:56]} 21. axb4 {[%emt 0:00:14]} Rfc8 {[%emt 0:00:02]} 22. Rfc1 {[%emt 0:00:20]} Rxc7 {[%emt 0:00:10]} 23. Rxc7 $11 {[%emt 0:00:07][%mdl 4096] Endgame KRB-KRN} a5 {[%emt 0:00:17]} 24. bxa5 {[%emt 0:00:08]} Rxa5 {[%emt 0:00:04] [#] ( -> ...Ra1+)} 25. h3 {[%emt 0:00:57]} b4 {[%emt 0:04:19]} 26. Nd4 {[%emt 0:01:54]} Be4 {[%emt 0:00:52]} 27. f3 {[%emt 0:03:04]} Bd5 {[%emt 0:00:35]} 28. e4 {[%emt 0:01:07]} Ra1+ {[%emt 0:00:29]} 29. Kh2 {[%emt 0:01:08]} Rd1 {[%emt 0:00:29]} (29... b3 $5 30. Rc8+ (30. exd5 $2 b2 $19) 30... Kh7 $11) 30. exd5 {[%emt 0:00:42] aiming for Nc6.} Rxd4 {[%emt 0:00:04]} 31. Rb7 {[%emt 0:00:09]} Rxd5 {[%emt 0:00:04]} 32. Rxb4 {[%emt 0:00:04] An interesting draw.  Weighted Error Value: White=0.02 (flawless) /Black=0.01 (flawless)} 1/2-1/2

[Event "10th Norway Chess 2022"]
[Site "Stavanger"]
[Date "2022.06.01"]
[Round "2.1"]
[White "Wang, Hao"]
[Black "Giri, Anish"]
[Result "1/2-1/2"]
[ECO "B90"]
[WhiteElo "2744"]
[BlackElo "2761"]
[Annotator "TA"]
[PlyCount "64"]
[EventDate "2022.05.30"]
[EventType "tourn"]
[EventCountry "NOR"]
[SourceTitle "playchess.com"]
[Source "ChessBase"]
[SourceQuality "1"]
[TimeControl "40/7200:0"]

{[%evp 12,64,17,6,23,22,13,22,20,18,27,12,14,9,0,18,5,5,22,20,23,18,6,0,22,14,32,33,33,32,32,32,33,33,33,33,35,36,40,36,38,44,41,0,46,0,0,0,0,0,0,0,0,0,0]} 1. e4 {[%emt 0:00:04]} c5 {[%emt 0:00:06]} 2. Nf3 {[%emt 0:00:05]} d6 {[%emt 0:00:04]} 3. d4 {[%emt 0:00:05]} cxd4 {[%emt 0:00:04]} 4. Nxd4 {[%emt 0:00:05]} Nf6 {[%emt 0:00:05]} 5. Nc3 {[%emt 0:00:06]} a6 {[%emt 0:00:04]} 6. h3 {[%emt 0:00:07]} e5 {[%emt 0:01:55]} 7. Nb3 {[%emt 0:00:11]} Be7 {[%emt 0:00:34] B90: Sicilian Najdorf: Unusual White 6th moves, 6 Be3 Ng4 and 6 Be3 e5.} 8. Be3 {[%emt 0:03:43] 8.g4 is more advanced technology.} Be6 {[%emt 0:00:16]} 9. f4 {[%emt 0:00:05]} exf4 {[%emt 0:02:30]} 10. Bxf4 {[%emt 0:00:07]} Nc6 {[%emt 0:00:02]} 11. Qe2 $1 {[%emt 0:00:09]} Ne5 {[%emt 0:01:33]} 12. O-O-O {[%emt 0:00:50]} Nfd7 {[%emt 0:00:02]} 13. Kb1 {[%emt 0:00:19]} Rc8 {[%emt 0:02:02][%cal Oc8c3]} 14. Qe3 {[%emt 0:01:28]} O-O {[%emt 0:00:13]} 15. g4 {[%emt 0:00:07]} Re8 {[%emt 0:02:03]} 16. Nd4 {[%emt 0:05:43]} Qa5 {[%emt 0:02:16][%cal Oc8c3]} 17. a3 {[%emt 0:00:31]} b5 {[%emt 0:00:37]} 18. Nf5 {[%emt 0:03:27]} b4 {[%emt 0:08:39]} (18... Bxf5 $5 19. gxf5 Nb6 $11) 19. axb4 {[%emt 0:15:32]} Qxb4 {[%emt 0:00:07]} 20. Qd4 {[%emt 0:02:10] Really sharp! Active counter play!} Qa5 $1 {[%emt 0:05:18]} 21. Nxe7+ {[%emt 0:14:57]} ({Inferior is} 21. Nxd6 Bxd6 22. Qxd6 Rxc3 23. bxc3 Nc5 $1 24. Qxe5 (24. Bxe5 $2 Qa2+ 25. Kc1 Qa3+ 26. Kd2 Nxe4+ 27. Ke1 Nxd6 $19) 24... Ba2+ 25. Kb2 Na4+ 26. Kc1 Rxe5 27. Bxe5 f5 $17) 21... Rxe7 {[%emt 0:00:02]} 22. Qxd6 {[%emt 0:00:12] [#]} Rxc3 $146 {[%emt 0:01:01]} ({Predecessor:} 22... Ree8 23. Nd5 Qa4 24. Rh2 Bxd5 25. Qxd5 Nf6 26. Qb3 Qxe4 27. Bxe5 Qxe5 28. Re2 Ne4 {½-½ (39) Yu,Y (2704)-Vachier Lagrave,M (2763) Riga 2021}) 23. Bxe5 {[%emt 0:00:17] A strong pair of Bishops.} (23. Qxe7 {leads to mate.} Qa2+ 24. Kc1 {[#]} Nf3 $1 25. Qe8+ Nf8) 23... Ba2+ $1 {[%emt 0:01:48]} (23... Qa2+ $2 24. Kc1 Qa1+ 25. Kd2 $18) 24. Kc1 {[%emt 0:01:01][%cal Bb1c1,Bc1c2,Bc2d3][%mdl 32]} Rxc2+ {[%emt 0:04:59]} 25. Kxc2 {[%emt 0:00:48]} Rxe5 {[%emt 0:01:06]} 26. Bc4 {[%emt 0:12:40]} Rc5 {[%emt 0:45:16]} 27. Qxd7 {[%emt 0:07:56][%cal Rd7e8]} (27. b3 $5 {[%cal Rd6d7]} Qb4 28. Qg3 (28. Kb2 Bxb3 29. Qxc5 Qxc5 $17) 28... Bxb3+ 29. Qxb3 Rxc4+ 30. Kb2 $16) 27... Rxc4+ {[%emt 0:00:40]} 28. Kd3 {[%emt 0:00:03][%cal Rd7e8]} h6 $1 {[%emt 0:04:04] And now ...Qe5 would win. The position is equal.} 29. Rc1 {[%emt 0:13:28]} Qb4 {[%emt 0:06:26][%csl LRb2,LRe4][%cal Oa2b1] aiming for ...Bb1+!} 30. Rxc4 {[%emt 0:05:43]} Bxc4+ {[%emt 0:02:28]} 31. Kc2 {[%emt 0:00:10]} Bb3+ {[%emt 0:00:52][%mdl 64] Discovered Attack} 32. Kd3 {[%emt 0:00:06]} Bc4+ {[%emt 0:00:03][%mdl 64] Discovered Attack.  Weighted Error Value: White=0.03 (flawless) /Black=0.02 (flawless)} 1/2-1/2

[Event "10th Norway Chess 2022"]
[Site "Stavanger"]
[Date "2022.06.01"]
[Round "2.1"]
[White "Topalov, Veselin"]
[Black "Anand, Viswanathan"]
[Result "0-1"]
[ECO "D10"]
[WhiteElo "2730"]
[BlackElo "2751"]
[Annotator "TA"]
[PlyCount "73"]
[EventDate "2022.05.30"]
[EventType "tourn"]
[EventCountry "NOR"]
[SourceTitle "playchess.com"]
[Source "ChessBase"]
[SourceQuality "1"]
[TimeControl "40/7200:0"]

{[%evp 9,73,8,18,-17,-5,-9,-5,-13,0,0,-4,-10,0,0,0,-2,0,0,-7,0,0,13,7,13,0,7,6,15,23,21,68,58,61,24,24,9,20,33,35,22,52,0,0,0,6,0,0,0,0,-32,-42,-34,-15,-74,-67,-62,-12,-17,0,0,0,0,0,0,0,-37]} 1. d4 {[%emt 0:00:04]} d5 {[%emt 0:00:08]} 2. c4 {[%emt 0:00:26]} dxc4 {[%emt 0:00:08]} 3. e4 {[%emt 0:02:32]} b5 {[%emt 0:00:23]} 4. a4 {[%emt 0:01:32]} c6 {[%emt 0:00:09]} 5. Nc3 {[%emt 0:08:42]} b4 {[%emt 0:00:55]} 6. Nb1 {[%emt 0:00:22] D10: Slav Defence: 3 cxd5 (without early Nf3) and 3 Nc3.} Ba6 $1 {[%emt 0:04:52]} 7. Qc2 {[%emt 0:02:12]} Qxd4 {[%emt 0:03:35] ...Nf6 is the strong threat.} 8. Nf3 {[%emt 0:00:35]} Qd7 {[%emt 0:01:56][%cal Oc4c3]} ({Resist} 8... Qc5 9. Nbd2 $14) 9. Bxc4 {[%emt 0:05:49]} Bxc4 {[%emt 0:00:37]} 10. Qxc4 {[%emt 0:00:05]} e6 {[%emt 0:00:07]} 11. Be3 {[%emt 0:06:14] [#]} Nf6 $146 {[%emt 0:01:21]} ({Predecessor:} 11... Qb7 12. O-O Nd7 13. Nbd2 Ngf6 14. Rac1 c5 15. e5 Nd5 16. Qg4 h5 17. Qe4 h4 {1-0 (52) Chumanov,V (2284)-Kolanek,R (2100) LSS email 2016}) 12. Nbd2 {[%emt 0:00:18]} Be7 {[%emt 0:00:37]} 13. O-O {[%emt 0:02:38]} O-O {[%emt 0:00:11][%cal Oc6c5]} 14. Rfd1 {[%emt 0:08:43]} c5 {[%emt 0:07:18]} 15. Bxc5 {[%emt 0:24:59]} Rc8 $1 {[%emt 0:14:56]} 16. Nb3 {[%emt 0:01:06]} ({Don't go for} 16. Ne5 $2 Qe8 17. Nb3 Nbd7 18. Nxd7 Nxd7 19. Rxd7 Qxd7 $19) 16... Qc7 {[%emt 0:04:01] Hoping for ...Nbd7.} 17. Qb5 {[%emt 0:06:17]} a6 {[%emt 0:02:48] [#]} 18. Qxb4 {[%emt 0:03:04]} Nc6 {[%emt 0:00:12]} 19. Qe1 {[%emt 0:01:31]} Rab8 {[%emt 0:04:08]} (19... Na5 $11 20. Nxa5 (20. Qxa5 Qxa5 21. Nxa5 Bxc5 $11) 20... Bxc5) 20. Bxe7 {[%emt 0:04:26]} (20. Rac1 $5) 20... Qxe7 {[%emt 0:00:13]} 21. Nfd2 {[%emt 0:05:49]} (21. Rac1 $5) 21... Qb4 {[%emt 0:08:09]} 22. Qe2 {[%emt 0:05:20]} Nd4 {[%emt 0:05:06]} 23. Nxd4 {[%emt 0:00:11]} Qxd4 {[%emt 0:00:06]} 24. b3 {[%emt 0:02:11]} h6 {[%emt 0:02:36]} 25. Ra2 {[%emt 0:03:18]} ({White should try} 25. Nf3 $14 Qc5 26. Nd4) 25... a5 $11 {[%emt 0:03:17]} 26. h3 {[%emt 0:01:02]} Qb4 {[%emt 0:01:37]} 27. Qe1 {[%emt 0:07:39]} (27. Kh2 {seems wilder.} Rc3 28. Rb2 Rbc8 29. e5) 27... Rc3 {[%emt 0:07:27]} 28. Rb2 {[%emt 0:00:16][%cal Ba2b2,Bb2b1,Bb1a1][%mdl 32]} Rd8 {[%emt 0:02:12]} 29. Rdb1 {[%emt 0:02:34]} Nd7 {[%emt 0:03:34][%cal Bf6d7,Bd7c5,Bc5a4,Ba4c3][%mdl 1056] Black has compensation.} 30. Qe2 {[%emt 0:04:31]} Rb8 {[%emt 0:07:42]} 31. Rd1 {[%emt 0:01:43] [#]} (31. Nc4 $11 {remains equal.}) 31... Nc5 $1 $17 {[%emt 0:00:14]} 32. Rbb1 {[%emt 0:00:08]} Rd3 {[%emt 0:03:09] 0x0.001761e914e3dp-1022s more active pieces.} (32... Nxb3 $15 33. Nxb3 Rxb3 34. Rxb3 Qxb3) 33. e5 $11 {[%emt 0:01:43] The position is equal.} Rd5 {[%emt 0:06:07]} 34. Nc4 {[%emt 0:01:17]} Rxd1+ {[%emt 0:00:32]} 35. Qxd1 {[%emt 0:00:18]} Nxa4 {[%emt 0:00:14] aiming for ...Nc3.} 36. Ra1 {[%emt 0:00:17]} Nc3 {[%emt 0:00:15]} 37. Qd6 {[%emt 0:00:11] Weighted Error Value: White=0.08 (flawless) /Black=0.05 (flawless)} 0-1

[Event "10th Norway Chess 2022"]
[Site "Stavanger"]
[Date "2022.06.02"]
[Round "3.1"]
[White "Carlsen, Magnus"]
[Black "Radjabov, Teimour"]
[Result "1-0"]
[ECO "E05"]
[WhiteElo "2864"]
[BlackElo "2753"]
[Annotator "TA"]
[PlyCount "71"]
[EventDate "2022.05.30"]
[EventType "tourn"]
[EventCountry "NOR"]
[SourceTitle "playchess.com"]
[Source "ChessBase"]
[SourceQuality "1"]
[TimeControl "40/7200:0"]

{[%evp 13,71,11,17,18,29,20,15,12,11,24,16,23,12,10,13,18,23,15,28,46,33,25,43,35,26,31,41,41,30,34,38,39,31,34,45,39,33,37,43,19,30,29,107,98,91,56,109,97,100,100,114,93,102,66,158,153,312,323,291,295]} 1. d4 {[%emt 0:00:04]} Nf6 {[%emt 0:00:04]} 2. c4 {[%emt 0:00:07]} e6 {[%emt 0:00:06]} 3. Nf3 {[%emt 0:00:06]} d5 {[%emt 0:00:07]} 4. g3 {[%emt 0:00:06]} Be7 {[%emt 0:00:15]} 5. Bg2 {[%emt 0:00:10]} O-O {[%emt 0:00:07]} 6. O-O {[%emt 0:02:17]} dxc4 {[%emt 0:00:20]} 7. Qc2 {[%emt 0:00:09]} b5 {[%emt 0:00:53]} 8. a4 {[%emt 0:00:26] E05: Open Catalan: 5 Nf3 Be7.} Bb7 {[%emt 0:00:19]} 9. axb5 {[%emt 0:00:16]} a6 {[%emt 0:00:17]} 10. bxa6 {[%emt 0:01:33] The position is equal.} Nxa6 {[%emt 0:01:12]} 11. Qxc4 {[%emt 0:00:14]} Bd5 {[%emt 0:01:04]} 12. Qc3 {[%emt 0:00:10]} c5 {[%emt 0:14:30] [#]} 13. Bf4 $1 $146 {[%emt 0:04:55][%mdl 8] A top novelty.} ({Predecessor:} 13. dxc5 Nxc5 14. Rxa8 Qxa8 15. Be3 Nfe4 16. Qc2 Rc8 17. Nc3 Nxc3 18. bxc3 Ne4 19. Bd4 Nxc3 20. Bxc3 {½-½ (98) Vidit,S (2723)-Nakamura,H (2766) Chess.com INT 2022}) 13... Ne4 {[%emt 0:07:17]} 14. Qc1 {[%emt 0:01:32]} cxd4 {[%emt 0:24:24]} 15. Nxd4 {[%emt 0:00:10]} Nec5 {[%emt 0:02:07] [#] ...Bxg2 is the strong threat.} 16. Bxd5 {[%emt 0:17:45]} Qxd5 {[%emt 0:00:30]} 17. Be3 {[%emt 0:01:34]} Qb7 {[%emt 0:17:31]} 18. Nd2 {[%emt 0:04:47]} Rac8 {[%emt 0:05:55][%cal Oc5b3]} 19. Qb1 {[%emt 0:03:29]} Nb4 {[%emt 0:02:18]} 20. N4f3 {[%emt 0:01:55]} Qb5 {[%emt 0:06:15]} 21. Re1 {[%emt 0:06:24]} Rfd8 {[%emt 0:01:37]} 22. Kf1 {[%emt 0:12:50]} h6 {[%emt 0:15:15]} 23. Rc1 {[%emt 0:00:40]} Bf8 {[%emt 0:00:55]} 24. Ne4 {[%emt 0:06:27]} Nb3 {[%emt 0:01:17][%csl LRa1,LRc1]} 25. Rxc8 {[%emt 0:00:14]} Rxc8 {[%emt 0:00:04]} 26. Nc3 $1 {[%emt 0:00:32]} Qb7 {[%emt 0:03:09]} 27. Ra4 {[%emt 0:01:03]} Nd5 {[%emt 0:01:32]} (27... Bc5 $11 {remains equal.}) 28. Nxd5 $16 {[%emt 0:01:55]} Qxd5 {[%emt 0:00:02]} 29. Kg2 {[%emt 0:03:18]} Qc6 {[%emt 0:05:20]} ({Black should play} 29... Qb5 $14 30. Qe4 Na5) 30. Ra7 {[%emt 0:04:56]} g5 {[%emt 0:01:46]} 31. Qd3 {[%emt 0:10:06]} Nc5 {[%emt 0:00:19]} 32. Qc4 $40 {[%emt 0:00:29][%mdl 128] Threatens to win with b4. White is out for blood.} Qb6 {[%emt 0:00:22][%csl LRa7,LRb2]} 33. Qa2 {[%emt 0:02:37] White is more active.} Qc6 {[%emt 0:00:22]} ({Better is} 33... Qb5 $1 $14) 34. b4 {[%emt 0:00:24][%cal Bb2b4,Bb4b5][%mdl 32]} Nd7 {[%emt 0:02:01] [#]} (34... Nb7 $16 {might work better.}) 35. b5 $1 $18 {[%emt 0:00:47]} Qd6 {[%emt 0:00:24]} 36. Qa6 {[%emt 0:01:21] Weighted Error Value: White=0.04 (flawless) /Black=0.16 (very precise)} 1-0

[Event "10th Norway Chess 2022"]
[Site "Stavanger"]
[Date "2022.06.02"]
[Round "3.1"]
[White "Mamedyarov, Shakhriyar"]
[Black "Topalov, Veselin"]
[Result "1/2-1/2"]
[ECO "D11"]
[WhiteElo "2770"]
[BlackElo "2730"]
[Annotator "TA"]
[PlyCount "114"]
[EventDate "2022.05.30"]
[EventType "tourn"]
[EventCountry "NOR"]
[SourceTitle "playchess.com"]
[Source "ChessBase"]
[SourceQuality "1"]
[TimeControl "40/7200:0"]

{[%evp 9,114,3,12,8,7,6,15,14,9,13,16,0,0,0,0,0,0,0,-4,-25,0,-27,-5,-49,-35,-28,-2,-38,-31,-40,-7,-29,-7,-18,0,0,0,0,0,-5,0,0,0,-8,25,25,25,18,21,14,26,57,43,44,58,50,74,66,101,31,29,24,32,35,19,16,68,80,89,94,99,98,85,92,63,39,39,36,44,0,40,30,49,42,42,45,124,-9,162,142,134,0,0,0,0,0,0,0,0,0,0,0,0,0,0,0,0]} 1. d4 {[%emt 0:00:03]} d5 {[%emt 0:00:13]} 2. c4 {[%emt 0:00:12]} c6 {[%emt 0:00:11]} 3. Nf3 {[%emt 0:00:09]} Nf6 {[%emt 0:00:12]} 4. g3 {[%emt 0:00:13]} Bf5 {[%emt 0:02:34]} 5. Nc3 {[%emt 0:00:42]} e6 {[%emt 0:03:27]} 6. Nh4 {[%emt 0:00:15] D11: Slav Defence: 3 Nf3 sidelines and 3...Nf6 4 e3 Bg4.} dxc4 {[%emt 0:06:01]} 7. Nxf5 {[%emt 0:01:02]} exf5 {[%emt 0:00:08]} 8. e3 {[%emt 0:00:09]} Nbd7 {[%emt 0:04:31]} 9. Bxc4 {[%emt 0:00:13] Hoping for Qb3.} Nb6 {[%emt 0:00:16]} 10. Bf1 {[%emt 0:11:31]} Bd6 {[%emt 0:03:33]} 11. Bg2 {[%emt 0:00:26]} O-O {[%emt 0:00:51] [#]} 12. Qd3 $146 {[%emt 0:06:21]} ({Predecessor:} 12. O-O Re8 13. Qb3 Qe7 14. a4 Qe6 15. Qxe6 fxe6 16. a5 Nbd5 17. a6 Reb8 18. axb7 Rxb7 {1-0 (68) Izoria,Z (2589)-King,A (2238) New York 2015}) 12... g6 {[%emt 0:00:41]} 13. Bd2 {[%emt 0:00:25]} Re8 {[%emt 0:01:42]} 14. O-O-O {[%emt 0:03:53]} Qe7 {[%emt 0:01:06]} 15. f3 {[%emt 0:00:42]} c5 {[%emt 0:08:40]} 16. Kb1 {[%emt 0:00:50]} cxd4 $1 {[%emt 0:03:59]} 17. exd4 {[%emt 0:00:36]} Qd7 {[%emt 0:00:49]} 18. Rhe1 {[%emt 0:13:57]} Rxe1 {[%emt 0:01:40]} 19. Rxe1 {[%emt 0:00:48]} Bc5 {[%emt 0:08:07]} 20. f4 {[%emt 0:07:25]} (20. g4 $5) 20... Bf8 {[%emt 0:11:15]} 21. Qb5 {[%emt 0:12:46]} Qxd4 {[%emt 0:03:24]} 22. Be3 {[%emt 0:00:36]} Qd6 {[%emt 0:00:33]} 23. Rd1 {[%emt 0:04:30]} Qe6 {[%emt 0:03:41]} 24. Bxb6 {[%emt 0:06:19]} axb6 {[%emt 0:00:05]} 25. Bxb7 {[%emt 0:00:06]} Ra5 {[%emt 0:00:05]} 26. Qc6 {[%emt 0:00:37]} Rc5 {[%emt 0:03:21]} 27. Qxe6 {[%emt 0:04:49]} fxe6 {[%emt 0:00:06]} 28. Bf3 {[%emt 0:01:56][%cal Bb7f3,Bf3e2,Be2b5][%mdl 32]} Rc7 {[%emt 0:08:41]} 29. a3 {[%emt 0:06:43]} Kf7 {[%emt 0:01:36]} 30. Na4 {[%emt 0:02:25]} Nd7 {[%emt 0:10:48]} 31. Be2 {[%emt 0:00:53]} Rb7 {[%emt 0:06:36]} 32. b4 {[%emt 0:04:45]} e5 {[%emt 0:02:16]} 33. Bb5 {[%emt 0:03:01]} Ke6 {[%emt 0:00:05]} 34. Kc2 {[%emt 0:07:10] White is more active.} (34. Nc3 $16) 34... exf4 $14 {[%emt 0:00:49]} 35. gxf4 {[%emt 0:00:05]} Bh6 {[%emt 0:01:10]} 36. Rd4 {[%emt 0:00:47]} Nf6 {[%emt 0:01:11]} 37. Kb3 {[%emt 0:02:42]} Nh5 {[%emt 0:00:48]} (37... Ke7 $11) 38. Rc4 $1 {[%emt 0:00:17]} Bxf4 {[%emt 0:01:29]} 39. Rc6+ {[%emt 0:00:01]} Ke5 {[%emt 0:01:11]} 40. Nxb6 {[%emt 0:00:00]} Bxh2 {[%emt 0:00:19]} 41. a4 $1 {[%emt 2:00:53]} Bg1 {[%emt 2:01:46]} 42. Nc4+ {[%emt 0:00:16][%mdl 1024] White has compensation.} (42. a5 {feels hotter.} Ng3 43. a6 Rg7 44. Bc4) 42... Kf4 {[%emt 0:00:02]} 43. Nd6 {[%emt 0:00:41]} Re7 {[%emt 0:00:38]} 44. a5 {[%emt 0:00:00]} (44. Rc1 $5 {[%cal Rc1g1]} Be3 45. Re1 $11) 44... Nf6 {[%emt 0:00:51]} 45. Rc1 {[%emt 0:01:11]} Bf2 {[%emt 0:00:23]} 46. Rc2 {[%emt 0:01:48]} ({Much weaker is} 46. Rf1 Kg3 $11) 46... Kg3 {[%emt 0:00:10]} 47. Bc6 {[%emt 0:00:51]} Re6 {[%emt 0:02:22]} (47... h5 $14) 48. Rd2 {[%emt 0:00:00]} (48. Nc8 $1 $16) 48... f4 $2 {[%emt 0:01:41]} (48... Ne4 $1 $11 {and Black stays safe.} 49. Nxe4+ fxe4) 49. b5 $18 {[%emt 0:00:00][%cal Od2f2] aiming for Rxf2!} Bc5 {[%emt 0:00:03] [#]} 50. Rd3+ {[%emt 0:00:52]} (50. b6 $1 $16 {[%cal Od6c8] Nc8! is the strong threat.} Bxd6 51. a6) 50... Re3 $11 {[%emt 0:00:03] The position is equal.} 51. Ne4+ $1 {[%emt 0:00:00]} Nxe4 {[%emt 0:00:07]} 52. Bxe4 {[%emt 0:00:00][%mdl 4096] Endgame KRB-KRB} f3 {[%emt 0:00:10]} 53. Kc4 $1 {[%emt 0:00:27]} Rxd3 {[%emt 0:01:05]} 54. Bxd3 {[%emt 0:00:00]} Be3 {[%emt 0:00:00] Strongly threatening ...h5.} 55. b6 {[%emt 0:00:14]} h5 $1 {[%emt 0:00:00]} 56. Kb5 {[%emt 0:00:00] a6 would kill now.} ({Not} 56. Bxg6 $2 f2 57. Bd3 h4 $19) 56... h4 {[%emt 0:00:00] White must now prevent ...h3.} 57. a6 {[%emt 0:00:00] And now a7 would win.} Bxb6 {[%emt 0:00:32] Weighted Error Value: White=0.13 (very precise) /Black=0.15 (very precise)} 1/2-1/2